[Event "Titled Tuesday Blitz September 27 Early 2022"]
[White "Ferreira, Vitor Hugo Vieira"]
[Black "Navarrete Mendez, Gonzalo Alberto"]
[WhiteFideId "2119765"]
[BlackFideId "5106850"]
[WhiteElo "2168"]
[BlackElo "2261"]
[Result "0-1"]
[Round "03"]
[TimeControl "180+1"]
[Date "2022.09.27"]
[WhiteClock "0:00:59"]
[BlackClock "0:00:05"]

1. e4 {[%clk 0:03:00]}  e5 {[%clk 0:02:55]} 2. Nf3 {[%clk 0:03:01]}  Nc6 {[%clk 0:02:54]} 3. Bb5 {[%clk 0:03:01]}  a6 {[%clk 0:02:54]} 4. Ba4 {[%clk 0:03:01]}  d6 {[%clk 0:02:54]} 5. O-O {[%clk 0:03:01]}  Nf6 {[%clk 0:02:52]} 6. Re1 {[%clk 0:03:01]}  b5 {[%clk 0:02:44]} 7. Bb3 {[%clk 0:03:01]}  Be7 {[%clk 0:02:45]} 8. c3 {[%clk 0:03:01]}  O-O {[%clk 0:02:41]} 9. d4 {[%clk 0:03:02]}  Bg4 {[%clk 0:02:34]} 10. d5 {[%clk 0:03:01]}  Na5 {[%clk 0:02:28]} 11. Bc2 {[%clk 0:03:01]}  c6 {[%clk 0:02:24]} 12. h3 {[%clk 0:03:02]}  Bh5 {[%clk 0:02:22]} 13. dxc6 {[%clk 0:02:59]}  Qc7 {[%clk 0:02:13]} 14. Nbd2 {[%clk 0:02:59]}  Qxc6 {[%clk 0:02:03]} 15. Nf1 {[%clk 0:02:59]}  Bg6 {[%clk 0:01:53]} 16. Ng3 {[%clk 0:02:57]}  Rfd8 {[%clk 0:01:50]} 17. Qe2 {[%clk 0:02:42]}  Rac8 {[%clk 0:01:45]} 18. Bg5 {[%clk 0:02:35]}  Nc4 {[%clk 0:01:43]} 19. Rab1 {[%clk 0:02:30]}  h6 {[%clk 0:01:36]} 20. Bc1 {[%clk 0:02:24]}  Nb6 {[%clk 0:01:19]} 21. Nh4 {[%clk 0:02:19]}  Kh7 {[%clk 0:00:47]} 22. Nhf5 {[%clk 0:02:15]}  Bf8 {[%clk 0:00:41]} 23. Qf3 {[%clk 0:02:06]}  Re8 {[%clk 0:00:37]} 24. Nxh6 {[%clk 0:02:03]}  d5 {[%clk 0:00:35]} 25. exd5 {[%clk 0:01:59]}  Nbxd5 {[%clk 0:00:18]} 26. Bxg6+ {[%clk 0:01:53]}  fxg6 {[%clk 0:00:16]} 27. Nf7 {[%clk 0:01:48]}  Bc5 {[%clk 0:00:11]} 28. Bd2 {[%clk 0:01:31]}  Kg8 {[%clk 0:00:10]} 29. Nxe5 {[%clk 0:01:30]}  Qd6 {[%clk 0:00:09]} 30. Nd3 {[%clk 0:01:30]}  Bb6 {[%clk 0:00:08]} 31. Nf4 {[%clk 0:01:27]}  Rf8 {[%clk 0:00:08]} 32. Re2 {[%clk 0:01:16]}  Nh5 {[%clk 0:00:05]} 33. Qxd5+ {[%clk 0:01:16]}  Qxd5 {[%clk 0:00:04]} 34. Nxd5 {[%clk 0:01:16]}  Nxg3 {[%clk 0:00:05]} 35. Nxb6 {[%clk 0:01:15]}  Nxe2+ {[%clk 0:00:05]} 36. Kf1 {[%clk 0:01:15]}  Rce8 {[%clk 0:00:04]} 37. Nd7 {[%clk 0:01:08]}  Ng3+ {[%clk 0:00:04]} 38. Kg1 {[%clk 0:01:07]}  Ne2+ {[%clk 0:00:04]} 39. Kh1 {[%clk 0:01:06]}  Rxf2 {[%clk 0:00:04]} 40. Nc5 {[%clk 0:01:05]}  Ng3+ {[%clk 0:00:04]} 41. Kh2 {[%clk 0:01:05]}  Nf1+ {[%clk 0:00:04]} 42. Kg1 {[%clk 0:01:05]}  Nxd2 {[%clk 0:00:03]} 43. Rd1 {[%clk 0:01:01]}  Ree2 {[%clk 0:00:03]} 44. Nd3 {[%clk 0:01:00]}  Rxg2+ {[%clk 0:00:03]} 45. Kh1 {[%clk 0:00:59]}  Rh2+ {[%clk 0:00:04]} 46. Kg1 {[%clk 0:00:59]}  Reg2# {[%clk 0:00:05]} 0-1


[Site "https://www.chess.com"]

[Event "Titled Tuesday Blitz September 27 Early 2022"]
[White "Foerster-Yialamas, Lucas"]
[Black "Rom, Jasper"]
[WhiteFideId "30901774"]
[BlackFideId "2023733"]
[WhiteElo "1804"]
[BlackElo "2233"]
[Result "1-0"]
[Round "03"]
[TimeControl "180+1"]
[Date "2022.09.27"]
[WhiteClock "0:00:30"]
[BlackClock "0:00:03"]

1. e4 {[%clk 0:02:59]}  e6 {[%clk 0:02:59]} 2. d4 {[%clk 0:02:59]}  d5 {[%clk 0:02:59]} 3. Nc3 {[%clk 0:03:00]}  Nf6 {[%clk 0:02:58]} 4. e5 {[%clk 0:03:00]}  Nfd7 {[%clk 0:02:58]} 5. f4 {[%clk 0:03:01]}  c5 {[%clk 0:02:59]} 6. Nf3 {[%clk 0:03:00]}  Nc6 {[%clk 0:02:59]} 7. Be3 {[%clk 0:03:00]}  Be7 {[%clk 0:02:59]} 8. Qd2 {[%clk 0:02:59]}  O-O {[%clk 0:03:00]} 9. O-O-O {[%clk 0:02:57]}  c4 {[%clk 0:02:59]} 10. f5 {[%clk 0:02:45]}  b5 {[%clk 0:02:59]} 11. g4 {[%clk 0:02:44]}  b4 {[%clk 0:02:57]} 12. Ne2 {[%clk 0:02:44]}  Qa5 {[%clk 0:02:56]} 13. Kb1 {[%clk 0:02:43]}  Nb6 {[%clk 0:02:50]} 14. h4 {[%clk 0:02:11]}  Na4 {[%clk 0:02:44]} 15. f6 {[%clk 0:01:39]}  gxf6 {[%clk 0:02:35]} 16. exf6 {[%clk 0:01:40]}  Bxf6 {[%clk 0:02:32]} 17. Bh6 {[%clk 0:01:39]}  Nxb2 {[%clk 0:02:16]} 18. Qf4 {[%clk 0:01:16]}  Be7 {[%clk 0:01:34]} 19. Bxf8 {[%clk 0:01:08]}  Kxf8 {[%clk 0:01:03]} 20. Ng5 {[%clk 0:01:03]}  Nd8 {[%clk 0:00:48]} 21. Nxh7+ {[%clk 0:00:59]}  Ke8 {[%clk 0:00:47]} 22. Kxb2 {[%clk 0:00:53]}  Qa3+ {[%clk 0:00:40]} 23. Kb1 {[%clk 0:00:51]}  b3 {[%clk 0:00:40]} 24. axb3 {[%clk 0:00:47]}  cxb3 {[%clk 0:00:40]} 25. Nc3 {[%clk 0:00:45]}  Nc6 {[%clk 0:00:13]} 26. Bb5 {[%clk 0:00:37]}  Bd7 {[%clk 0:00:12]} 27. Bxc6 {[%clk 0:00:35]}  Bxc6 {[%clk 0:00:12]} 28. Qc7 {[%clk 0:00:36]}  Bd7 {[%clk 0:00:08]} 29. Qb7 {[%clk 0:00:34]}  Rc8 {[%clk 0:00:07]} 30. Qxb3 {[%clk 0:00:32]}  Qa5 {[%clk 0:00:03]} 31. Rh3 {[%clk 0:00:29]}  Bd6 {[%clk 0:00:04]} 32. Nf6+ {[%clk 0:00:27]}  Kd8 {[%clk 0:00:03]} 33. Nxd7 {[%clk 0:00:28]}  Kxd7 {[%clk 0:00:03]} 34. Qb5+ {[%clk 0:00:29]}  Qxb5+ {[%clk 0:00:02]} 35. Nxb5 {[%clk 0:00:30]}  Rb8 {[%clk 0:00:03]} 36. Rb3 {[%clk 0:00:30]} 1-0


[Site "https://www.chess.com"]

[Event "Titled Tuesday Blitz September 27 Early 2022"]
[White "Gajwa Ankit"]
[Black "Kodinets, Konstantin L."]
[WhiteFideId "5077834"]
[BlackFideId "4122011"]
[WhiteElo "2036"]
[BlackElo "2447"]
[Result "1/2-1/2"]
[Round "03"]
[TimeControl "180+1"]
[Date "2022.09.27"]
[WhiteClock "0:00:12"]
[BlackClock "0:00:03"]

1. e4 {[%clk 0:03:00]}  e5 {[%clk 0:02:59]} 2. Nf3 {[%clk 0:03:00]}  d6 {[%clk 0:03:00]} 3. d4 {[%clk 0:02:59]}  exd4 {[%clk 0:03:01]} 4. Nxd4 {[%clk 0:02:59]}  Nf6 {[%clk 0:03:01]} 5. Nc3 {[%clk 0:02:59]}  Be7 {[%clk 0:03:02]} 6. Bc4 {[%clk 0:02:59]}  O-O {[%clk 0:03:02]} 7. O-O {[%clk 0:02:59]}  Nc6 {[%clk 0:03:03]} 8. Bb3 {[%clk 0:02:46]}  Na5 {[%clk 0:03:02]} 9. Bg5 {[%clk 0:02:44]}  h6 {[%clk 0:03:01]} 10. Bh4 {[%clk 0:02:42]}  a6 {[%clk 0:03:02]} 11. Re1 {[%clk 0:02:41]}  g5 {[%clk 0:02:47]} 12. Bg3 {[%clk 0:02:34]}  c5 {[%clk 0:02:47]} 13. Nf3 {[%clk 0:01:30]}  c4 {[%clk 0:02:46]} 14. Ba4 {[%clk 0:01:19]}  b5 {[%clk 0:02:46]} 15. b4 {[%clk 0:01:11]}  Nc6 {[%clk 0:02:42]} 16. Nxb5 {[%clk 0:01:06]}  axb5 {[%clk 0:02:43]} 17. Bxb5 {[%clk 0:01:06]}  Nxb4 {[%clk 0:02:38]} 18. Bxc4 {[%clk 0:01:06]}  Be6 {[%clk 0:02:05]} 19. Bxe6 {[%clk 0:01:04]}  fxe6 {[%clk 0:02:05]} 20. c3 {[%clk 0:01:03]}  Na6 {[%clk 0:01:48]} 21. Nd4 {[%clk 0:01:01]}  Qc8 {[%clk 0:01:22]} 22. h4 {[%clk 0:00:57]}  Nc5 {[%clk 0:01:14]} 23. hxg5 {[%clk 0:00:55]}  hxg5 {[%clk 0:01:15]} 24. e5 {[%clk 0:00:51]}  dxe5 {[%clk 0:01:10]} 25. Rxe5 {[%clk 0:00:50]}  Kf7 {[%clk 0:01:00]} 26. Rxg5 {[%clk 0:00:42]}  Nce4 {[%clk 0:00:56]} 27. Re5 {[%clk 0:00:38]}  Nxg3 {[%clk 0:00:51]} 28. fxg3 {[%clk 0:00:36]}  Qxc3 {[%clk 0:00:45]} 29. Rc1 {[%clk 0:00:34]}  Qxg3 {[%clk 0:00:41]} 30. Rxe6 {[%clk 0:00:26]}  Rfe8 {[%clk 0:00:25]} 31. Qb3 {[%clk 0:00:25]}  Qxb3 {[%clk 0:00:23]} 32. axb3 {[%clk 0:00:25]}  Rad8 {[%clk 0:00:20]} 33. Rc4 {[%clk 0:00:20]}  Rd6 {[%clk 0:00:09]} 34. Rxd6 {[%clk 0:00:16]}  Bxd6 {[%clk 0:00:10]} 35. Nb5 {[%clk 0:00:16]}  Bg3 {[%clk 0:00:09]} 36. Rc1 {[%clk 0:00:16]}  Rb8 {[%clk 0:00:08]} 37. Nd4 {[%clk 0:00:16]}  Be5 {[%clk 0:00:06]} 38. Nc6 {[%clk 0:00:16]}  Rb5 {[%clk 0:00:04]} 39. Nxe5+ {[%clk 0:00:16]}  Rxe5 {[%clk 0:00:05]} 40. Rc4 {[%clk 0:00:17]}  Rb5 {[%clk 0:00:06]} 41. b4 {[%clk 0:00:16]}  Ke6 {[%clk 0:00:06]} 42. Kf2 {[%clk 0:00:16]}  Nd5 {[%clk 0:00:06]} 43. Rh4 {[%clk 0:00:16]}  Nxb4 {[%clk 0:00:05]} 44. Rh6+ {[%clk 0:00:16]}  Kf7 {[%clk 0:00:06]} 45. Rh7+ {[%clk 0:00:16]}  Kg6 {[%clk 0:00:06]} 46. Rc7 {[%clk 0:00:17]}  Nd3+ {[%clk 0:00:05]} 47. Ke3 {[%clk 0:00:17]}  Ne5 {[%clk 0:00:06]} 48. g3 {[%clk 0:00:17]}  Rb4 {[%clk 0:00:05]} 49. Re7 {[%clk 0:00:16]}  Ng4+ {[%clk 0:00:05]} 50. Kf3 {[%clk 0:00:16]}  Nf6 {[%clk 0:00:06]} 51. Rc7 {[%clk 0:00:16]}  Rb3+ {[%clk 0:00:05]} 52. Kg2 {[%clk 0:00:16]}  Kf5 {[%clk 0:00:04]} 53. Rc4 {[%clk 0:00:16]}  Ke5 {[%clk 0:00:04]} 54. Rf4 {[%clk 0:00:16]}  Nd5 {[%clk 0:00:05]} 55. Rh4 {[%clk 0:00:16]}  Ne3+ {[%clk 0:00:03]} 56. Kh3 {[%clk 0:00:16]}  Nf5 {[%clk 0:00:04]} 57. Rg4 {[%clk 0:00:14]}  Ne3 {[%clk 0:00:04]} 58. Rg8 {[%clk 0:00:14]}  Rb1 {[%clk 0:00:04]} 59. Kh4 {[%clk 0:00:14]}  Nf5+ {[%clk 0:00:04]} 60. Kh3 {[%clk 0:00:14]}  Rg1 {[%clk 0:00:04]} 61. Kh2 {[%clk 0:00:13]}  Rxg3 {[%clk 0:00:02]} 62. Rxg3 {[%clk 0:00:12]}  Nxg3 {[%clk 0:00:03]} 1/2-1/2


[Site "https://www.chess.com"]

[Event "Titled Tuesday Blitz September 27 Early 2022"]
[White "Goncalves, Davi Sulzbacher"]
[Black "Fernandez Hernandez, Gerardo"]
[WhiteFideId "2154510"]
[BlackFideId "2207400"]
[WhiteElo "2107"]
[BlackElo "2178"]
[Result "1-0"]
[Round "03"]
[TimeControl "180+1"]
[Date "2022.09.27"]
[WhiteClock "0:00:42"]
[BlackClock "0:00:02"]

1. e4 {[%clk 0:03:00]}  e6 {[%clk 0:03:00]} 2. d4 {[%clk 0:03:00]}  d5 {[%clk 0:03:00]} 3. e5 {[%clk 0:03:00]}  c5 {[%clk 0:03:00]} 4. c3 {[%clk 0:03:01]}  Nc6 {[%clk 0:03:00]} 5. Nf3 {[%clk 0:03:01]}  Qb6 {[%clk 0:03:00]} 6. a3 {[%clk 0:03:00]}  f6 {[%clk 0:02:57]} 7. exf6 {[%clk 0:02:58]}  Nxf6 {[%clk 0:02:56]} 8. Be2 {[%clk 0:02:55]}  Bd6 {[%clk 0:02:56]} 9. dxc5 {[%clk 0:02:51]}  Bxc5 {[%clk 0:02:53]} 10. O-O {[%clk 0:02:52]}  Ne4 {[%clk 0:02:41]} 11. Qe1 {[%clk 0:02:43]}  O-O {[%clk 0:02:33]} 12. b4 {[%clk 0:02:43]}  Bxf2+ {[%clk 0:01:59]} 13. Rxf2 {[%clk 0:02:43]}  e5 {[%clk 0:01:58]} 14. Bc4 {[%clk 0:01:52]}  Be6 {[%clk 0:01:37]} 15. Be3 {[%clk 0:01:49]}  Qc7 {[%clk 0:01:17]} 16. Bb3 {[%clk 0:01:43]}  Nxf2 {[%clk 0:01:14]} 17. Bxf2 {[%clk 0:01:43]}  Rae8 {[%clk 0:00:41]} 18. Ng5 {[%clk 0:01:30]}  Qd7 {[%clk 0:00:29]} 19. Nxe6 {[%clk 0:01:27]}  Qxe6 {[%clk 0:00:29]} 20. Nd2 {[%clk 0:01:26]}  Kh8 {[%clk 0:00:19]} 21. Nf3 {[%clk 0:01:22]}  Qg4 {[%clk 0:00:16]} 22. h3 {[%clk 0:01:14]}  Qe6 {[%clk 0:00:11]} 23. Bc5 {[%clk 0:01:12]}  Rxf3 {[%clk 0:00:10]} 24. gxf3 {[%clk 0:01:12]}  Qxh3 {[%clk 0:00:08]} 25. Bxd5 {[%clk 0:01:11]}  e4 {[%clk 0:00:07]} 26. Bxe4 {[%clk 0:01:06]}  Re6 {[%clk 0:00:06]} 27. Qf1 {[%clk 0:00:58]}  Qg3+ {[%clk 0:00:01]} 28. Qg2 {[%clk 0:00:58]}  Qf4 {[%clk 0:00:02]} 29. Qh3 {[%clk 0:00:42]} 1-0


[Site "https://www.chess.com"]

[Event "Titled Tuesday Blitz September 27 Early 2022"]
[White "Gulevich, Artem"]
[Black "Erenberg, Ariel"]
[WhiteFideId "24119580"]
[BlackFideId "2811634"]
[WhiteElo "2218"]
[BlackElo "2243"]
[Result "0-1"]
[Round "03"]
[TimeControl "180+1"]
[Date "2022.09.27"]
[WhiteClock "0:00:01"]
[BlackClock "0:01:08"]

1. Nf3 {[%clk 0:02:59]}  c6 {[%clk 0:03:00]} 2. b3 {[%clk 0:02:59]}  d5 {[%clk 0:03:01]} 3. Bb2 {[%clk 0:02:59]}  Nf6 {[%clk 0:03:01]} 4. e3 {[%clk 0:03:00]}  g6 {[%clk 0:03:02]} 5. Be2 {[%clk 0:03:00]}  Bg7 {[%clk 0:03:03]} 6. O-O {[%clk 0:03:01]}  O-O {[%clk 0:03:03]} 7. d4 {[%clk 0:03:01]}  Nbd7 {[%clk 0:03:03]} 8. Nbd2 {[%clk 0:03:02]}  Re8 {[%clk 0:03:02]} 9. c4 {[%clk 0:03:02]}  a5 {[%clk 0:03:00]} 10. a3 {[%clk 0:03:02]}  a4 {[%clk 0:02:59]} 11. b4 {[%clk 0:03:01]}  b6 {[%clk 0:02:52]} 12. cxd5 {[%clk 0:02:56]}  cxd5 {[%clk 0:02:52]} 13. Rc1 {[%clk 0:02:56]}  Bb7 {[%clk 0:02:49]} 14. Nb1 {[%clk 0:02:48]}  Ne4 {[%clk 0:02:49]} 15. Nfd2 {[%clk 0:02:48]}  Nd6 {[%clk 0:02:48]} 16. Nc3 {[%clk 0:02:44]}  e5 {[%clk 0:02:46]} 17. dxe5 {[%clk 0:02:38]}  Nxe5 {[%clk 0:02:45]} 18. Nxa4 {[%clk 0:02:32]}  Bc6 {[%clk 0:02:27]} 19. Nc3 {[%clk 0:02:12]}  Qh4 {[%clk 0:02:26]} 20. Nf3 {[%clk 0:02:01]}  Nxf3+ {[%clk 0:02:25]} 21. Bxf3 {[%clk 0:02:02]}  Nc4 {[%clk 0:02:25]} 22. Qc2 {[%clk 0:01:44]}  Nxb2 {[%clk 0:01:59]} 23. Qxb2 {[%clk 0:01:44]}  Be5 {[%clk 0:01:59]} 24. g3 {[%clk 0:01:37]}  Qf6 {[%clk 0:02:00]} 25. Bg2 {[%clk 0:01:14]}  Bb5 {[%clk 0:02:00]} 26. Rfd1 {[%clk 0:01:09]}  Rac8 {[%clk 0:01:58]} 27. Nxd5 {[%clk 0:00:22]}  Bxb2 {[%clk 0:01:54]} 28. Nxf6+ {[%clk 0:00:22]}  Bxf6 {[%clk 0:01:55]} 29. Rxc8 {[%clk 0:00:15]}  Rxc8 {[%clk 0:01:55]} 30. Bb7 {[%clk 0:00:15]}  Rc7 {[%clk 0:01:45]} 31. Be4 {[%clk 0:00:15]}  Be7 {[%clk 0:01:42]} 32. h4 {[%clk 0:00:10]}  Rc3 {[%clk 0:01:37]} 33. Ra1 {[%clk 0:00:09]}  Ba4 {[%clk 0:01:37]} 34. Kg2 {[%clk 0:00:06]}  b5 {[%clk 0:01:35]} 35. Bf3 {[%clk 0:00:05]}  Kg7 {[%clk 0:01:35]} 36. Be2 {[%clk 0:00:05]}  h5 {[%clk 0:01:36]} 37. Bf1 {[%clk 0:00:03]}  Bf6 {[%clk 0:01:36]} 38. Ra2 {[%clk 0:00:02]}  Rb3 {[%clk 0:01:22]} 39. Rd2 {[%clk 0:00:02]}  Rxa3 {[%clk 0:01:21]} 40. Rd5 {[%clk 0:00:03]}  Rb3 {[%clk 0:01:14]} 41. Bxb5 {[%clk 0:00:03]}  Rxb4 {[%clk 0:01:14]} 42. Bxa4 {[%clk 0:00:02]}  Rxa4 {[%clk 0:01:15]} 43. Rc5 {[%clk 0:00:03]}  Ra6 {[%clk 0:01:14]} 44. Rc2 {[%clk 0:00:03]}  Re6 {[%clk 0:01:13]} 45. Kf3 {[%clk 0:00:03]}  Be7 {[%clk 0:01:13]} 46. Kg2 {[%clk 0:00:04]}  Kf6 {[%clk 0:01:12]} 47. Kf3 {[%clk 0:00:04]}  Bb4 {[%clk 0:01:11]} 48. Kg2 {[%clk 0:00:05]}  Rd6 {[%clk 0:01:11]} 49. Kf3 {[%clk 0:00:05]}  Rd2 {[%clk 0:01:11]} 50. Rxd2 {[%clk 0:00:05]}  Bxd2 {[%clk 0:01:11]} 51. Kf4 {[%clk 0:00:05]}  Be1 {[%clk 0:01:09]} 52. f3 {[%clk 0:00:05]}  Bf2 {[%clk 0:01:08]} 53. e4 {[%clk 0:00:04]}  Be1 {[%clk 0:01:08]} 54. e5+ {[%clk 0:00:01]}  Ke6 {[%clk 0:01:08]} 0-1


[Site "https://www.chess.com"]

[Event "Titled Tuesday Blitz September 27 Early 2022"]
[White "Guz, Ari"]
[Black "Sargissyan, Sargis"]
[WhiteFideId "2825759"]
[BlackFideId "13303210"]
[WhiteElo "1913"]
[BlackElo "2102"]
[Result "1-0"]
[Round "03"]
[TimeControl "180+1"]
[Date "2022.09.27"]
[WhiteClock "0:00:20"]
[BlackClock "0:00:05"]

1. Nf3 {[%clk 0:02:58]}  Nf6 {[%clk 0:02:59]} 2. b3 {[%clk 0:02:57]}  d5 {[%clk 0:02:56]} 3. Bb2 {[%clk 0:02:57]}  Bf5 {[%clk 0:02:56]} 4. e3 {[%clk 0:02:57]}  h6 {[%clk 0:02:55]} 5. d3 {[%clk 0:02:55]}  e6 {[%clk 0:02:55]} 6. Nbd2 {[%clk 0:02:55]}  Nbd7 {[%clk 0:02:51]} 7. g3 {[%clk 0:02:53]}  Be7 {[%clk 0:02:50]} 8. Bg2 {[%clk 0:02:53]}  O-O {[%clk 0:02:51]} 9. O-O {[%clk 0:02:53]}  Bh7 {[%clk 0:02:48]} 10. Qe2 {[%clk 0:02:50]}  a5 {[%clk 0:02:29]} 11. a3 {[%clk 0:02:50]}  c6 {[%clk 0:02:23]} 12. e4 {[%clk 0:02:43]}  b5 {[%clk 0:02:15]} 13. Nd4 {[%clk 0:02:40]}  Qb6 {[%clk 0:02:05]} 14. Kh1 {[%clk 0:01:55]}  Bc5 {[%clk 0:01:43]} 15. N4f3 {[%clk 0:01:46]}  dxe4 {[%clk 0:01:32]} 16. Nxe4 {[%clk 0:01:44]}  Nxe4 {[%clk 0:01:16]} 17. dxe4 {[%clk 0:01:45]}  Rfd8 {[%clk 0:01:11]} 18. Rad1 {[%clk 0:01:29]}  Nf6 {[%clk 0:00:59]} 19. Ne5 {[%clk 0:01:09]}  Rxd1 {[%clk 0:00:22]} 20. Qxd1 {[%clk 0:01:10]}  Rd8 {[%clk 0:00:16]} 21. Qe2 {[%clk 0:01:02]}  Nd7 {[%clk 0:00:12]} 22. Nd3 {[%clk 0:00:58]}  Bd4 {[%clk 0:00:12]} 23. Bc1 {[%clk 0:00:52]}  Ne5 {[%clk 0:00:10]} 24. Nf4 {[%clk 0:00:49]}  Bc3 {[%clk 0:00:08]} 25. Rd1 {[%clk 0:00:48]}  Rxd1+ {[%clk 0:00:07]} 26. Qxd1 {[%clk 0:00:48]}  Qd4 {[%clk 0:00:07]} 27. Qe2 {[%clk 0:00:43]}  Bb2 {[%clk 0:00:06]} 28. Be3 {[%clk 0:00:42]}  Qc3 {[%clk 0:00:06]} 29. Qd1 {[%clk 0:00:37]}  g5 {[%clk 0:00:05]} 30. Nh5 {[%clk 0:00:31]}  Bg6 {[%clk 0:00:05]} 31. h3 {[%clk 0:00:20]} 1-0


[Site "https://www.chess.com"]

[Event "Titled Tuesday Blitz September 27 Early 2022"]
[White "Hansen, Eric"]
[Black "Sai Han Thiha"]
[WhiteFideId "2606771"]
[BlackFideId "13012290"]
[WhiteElo "2568"]
[BlackElo "1791"]
[Result "1-0"]
[Round "03"]
[TimeControl "180+1"]
[Date "2022.09.27"]
[WhiteClock "0:00:22"]
[BlackClock "0:00:05"]

1. d4 {[%clk 0:03:00]}  Nf6 {[%clk 0:03:00]} 2. c4 {[%clk 0:03:00]}  e6 {[%clk 0:03:00]} 3. Nc3 {[%clk 0:02:59]}  Bb4 {[%clk 0:03:01]} 4. e3 {[%clk 0:02:56]}  b6 {[%clk 0:03:00]} 5. Ne2 {[%clk 0:02:55]}  Ba6 {[%clk 0:02:54]} 6. a3 {[%clk 0:02:56]}  Bxc3+ {[%clk 0:02:55]} 7. Nxc3 {[%clk 0:02:57]}  d5 {[%clk 0:02:54]} 8. cxd5 {[%clk 0:02:47]}  Bxf1 {[%clk 0:02:52]} 9. Kxf1 {[%clk 0:02:48]}  exd5 {[%clk 0:02:49]} 10. g4 {[%clk 0:02:48]}  h6 {[%clk 0:02:45]} 11. h4 {[%clk 0:02:44]}  c6 {[%clk 0:02:25]} 12. Kg2 {[%clk 0:02:39]}  Qd6 {[%clk 0:01:52]} 13. f3 {[%clk 0:02:27]}  Nbd7 {[%clk 0:01:51]} 14. Qd3 {[%clk 0:02:19]}  O-O {[%clk 0:01:13]} 15. Ne2 {[%clk 0:02:11]}  c5 {[%clk 0:01:02]} 16. Ng3 {[%clk 0:02:11]}  Nh7 {[%clk 0:00:57]} 17. Nf5 {[%clk 0:02:07]}  Qe6 {[%clk 0:00:58]} 18. dxc5 {[%clk 0:01:36]}  Nxc5 {[%clk 0:00:41]} 19. Qc3 {[%clk 0:01:21]}  Qf6 {[%clk 0:00:36]} 20. Qxf6 {[%clk 0:01:10]}  Nxf6 {[%clk 0:00:37]} 21. b4 {[%clk 0:01:10]}  Nb3 {[%clk 0:00:36]} 22. Rb1 {[%clk 0:01:10]}  Nxc1 {[%clk 0:00:36]} 23. Rhxc1 {[%clk 0:01:11]}  Rfd8 {[%clk 0:00:30]} 24. Rc7 {[%clk 0:01:08]}  Rd7 {[%clk 0:00:30]} 25. Rbc1 {[%clk 0:01:02]}  Rad8 {[%clk 0:00:30]} 26. h5 {[%clk 0:00:58]}  Kh7 {[%clk 0:00:24]} 27. R1c6 {[%clk 0:00:58]}  Kg8 {[%clk 0:00:21]} 28. Kf2 {[%clk 0:00:49]}  Kh7 {[%clk 0:00:21]} 29. a4 {[%clk 0:00:45]}  Kg8 {[%clk 0:00:20]} 30. Rxd7 {[%clk 0:00:45]}  Rxd7 {[%clk 0:00:19]} 31. Nxh6+ {[%clk 0:00:45]}  gxh6 {[%clk 0:00:17]} 32. Rxf6 {[%clk 0:00:45]}  Rc7 {[%clk 0:00:17]} 33. Rxh6 {[%clk 0:00:36]}  Rc4 {[%clk 0:00:17]} 34. Rd6 {[%clk 0:00:35]}  Rxb4 {[%clk 0:00:17]} 35. Rxd5 {[%clk 0:00:35]}  Rxa4 {[%clk 0:00:17]} 36. e4 {[%clk 0:00:23]}  Ra3 {[%clk 0:00:16]} 37. g5 {[%clk 0:00:24]}  Rb3 {[%clk 0:00:15]} 38. Rd8+ {[%clk 0:00:24]}  Kg7 {[%clk 0:00:15]} 39. Rd7 {[%clk 0:00:24]}  Kg8 {[%clk 0:00:12]} 40. Rxa7 {[%clk 0:00:23]}  b5 {[%clk 0:00:12]} 41. e5 {[%clk 0:00:20]}  Kf8 {[%clk 0:00:11]} 42. e6 {[%clk 0:00:20]}  fxe6 {[%clk 0:00:11]} 43. h6 {[%clk 0:00:21]}  Rb2+ {[%clk 0:00:06]} 44. Kg3 {[%clk 0:00:20]}  Rb1 {[%clk 0:00:05]} 45. Ra8+ {[%clk 0:00:20]}  Kf7 {[%clk 0:00:05]} 46. h7 {[%clk 0:00:21]}  Rh1 {[%clk 0:00:03]} 47. h8=Q {[%clk 0:00:21]}  Rxh8 {[%clk 0:00:04]} 48. Rxh8 {[%clk 0:00:22]}  Kg6 {[%clk 0:00:05]} 49. Kg4 {[%clk 0:00:22]} 1-0


[Site "https://www.chess.com"]

[Event "Titled Tuesday Blitz September 27 Early 2022"]
[White "Harish, Neeraj"]
[Black "Nguyen, Thien Ngan"]
[WhiteFideId "30958130"]
[BlackFideId "12414816"]
[WhiteElo "1574"]
[BlackElo "1873"]
[Result "1-0"]
[Round "03"]
[TimeControl "180+1"]
[Date "2022.09.27"]
[WhiteClock "0:00:02"]
[BlackClock "0:00:01"]

1. e4 {[%clk 0:03:00]}  e5 {[%clk 0:02:59]} 2. Nf3 {[%clk 0:02:59]}  Nc6 {[%clk 0:02:59]} 3. Bc4 {[%clk 0:02:57]}  Bc5 {[%clk 0:02:59]} 4. O-O {[%clk 0:02:56]}  Nf6 {[%clk 0:02:58]} 5. d3 {[%clk 0:02:56]}  O-O {[%clk 0:02:56]} 6. h3 {[%clk 0:02:55]}  h6 {[%clk 0:02:54]} 7. Re1 {[%clk 0:02:49]}  Re8 {[%clk 0:02:54]} 8. Nbd2 {[%clk 0:02:46]}  a6 {[%clk 0:02:51]} 9. a4 {[%clk 0:02:31]}  Ba7 {[%clk 0:02:41]} 10. a5 {[%clk 0:02:25]}  d5 {[%clk 0:02:30]} 11. exd5 {[%clk 0:02:24]}  Nxd5 {[%clk 0:02:30]} 12. Ne4 {[%clk 0:02:17]}  f5 {[%clk 0:02:19]} 13. Ng3 {[%clk 0:02:13]}  Kh8 {[%clk 0:02:15]} 14. c3 {[%clk 0:01:56]}  Qd6 {[%clk 0:02:07]} 15. d4 {[%clk 0:01:18]}  e4 {[%clk 0:02:00]} 16. Nh4 {[%clk 0:01:12]}  e3 {[%clk 0:01:33]} 17. Nhxf5 {[%clk 0:00:59]}  Bxf5 {[%clk 0:01:24]} 18. Nxf5 {[%clk 0:00:59]}  exf2+ {[%clk 0:01:24]} 19. Kxf2 {[%clk 0:00:58]}  Rf8 {[%clk 0:01:16]} 20. Qg4 {[%clk 0:00:20]}  g6 {[%clk 0:00:25]} 21. Bxh6 {[%clk 0:00:17]}  Rxf5+ {[%clk 0:00:25]} 22. Kg1 {[%clk 0:00:17]}  Kh7 {[%clk 0:00:13]} 23. Bd2 {[%clk 0:00:15]}  Nf6 {[%clk 0:00:12]} 24. Qh4+ {[%clk 0:00:14]}  Rh5 {[%clk 0:00:12]} 25. Qf2 {[%clk 0:00:13]}  Nxd4 {[%clk 0:00:12]} 26. Be3 {[%clk 0:00:10]}  Nc6 {[%clk 0:00:10]} 27. Bxa7 {[%clk 0:00:10]}  Nxa7 {[%clk 0:00:11]} 28. Re6 {[%clk 0:00:11]}  Qc5 {[%clk 0:00:10]} 29. Rxf6 {[%clk 0:00:09]}  Qxc4 {[%clk 0:00:09]} 30. Rf7+ {[%clk 0:00:09]}  Kh6 {[%clk 0:00:09]} 31. Qe3+ {[%clk 0:00:07]}  g5 {[%clk 0:00:04]} 32. Rf6+ {[%clk 0:00:06]}  Kh7 {[%clk 0:00:03]} 33. Qe7+ {[%clk 0:00:06]}  Kh8 {[%clk 0:00:03]} 34. Raf1 {[%clk 0:00:03]}  Rg8 {[%clk 0:00:02]} 35. Rf7 {[%clk 0:00:02]}  Rh6 {[%clk 0:00:01]} 36. Rf8 {[%clk 0:00:02]}  Qc5+ {[%clk 0:00:01]} 37. Qxc5 {[%clk 0:00:01]}  Rxf8 {[%clk 0:00:01]} 38. Qxg5 {[%clk 0:00:02]} 1-0


[Site "https://www.chess.com"]